Cogmind - Beta 13 @@@ ROGUE MODE // 2024.04.07 @ 08:30:38 Player: DURANDAL Result: Destroyed by L6-Z98(R) with Subdweller Machine Gun Performance ------------- Evolutions (0) 0 Regions Visited (3) 600 Robots Destroyed (15) 75 Value Destroyed (220) 220 Prototype IDs (0) 0 Alien Tech Used (0) 0 Bonus (0) 0 TOTAL SCORE: 895 Bonus ------- None Cogmind --------- Core Integrity 0/250 Matter 284/300 Energy 150/150 System Corruption 0% Temperature Cool (0) Movement Walking (190) Ox1 Location -10/Subcaves Parts ------- > --- POWER (1) -------- Light Angular Momentum Engine > --- PROPULSION (2) --- Carbon-fiber Leg > --- UTILITY (2) ------ Large Storage Unit > --- WEAPON (2) ------- Light Assault Rifle > --- INVENTORY (15) --- Ion Engine Ion Engine Aluminum Leg Aluminum Leg Medium Storage Unit Structural Scanner Scrap Shield EM Pulse Gun Riot Gun Light EM Pulse Cannon Light EM Pulse Cannon Light Assault Rifle Barrage Gun Mining Laser Peak State ------------ > --- POWER ------------ Light Angular Momentum Engine > --- PROPULSION ------- Aluminum Leg Carbon-fiber Leg > --- UTILITY ---------- Heat Sink Large Storage Unit > --- WEAPON ----------- Light Assault Rifle Light Assault Rifle > --- INVENTORY -------- Ion Engine Ion Engine Aluminum Leg Aluminum Leg Medium Storage Unit Structural Scanner EM Pulse Gun Riot Gun Medium Laser Light EM Pulse Cannon Light EM Pulse Cannon Beam Cannon Light Assault Rifle Barrage Gun Mining Laser [Rating: 15] Favorites ----------- Power Ion Engine Engine Ion Engine Propulsion Aluminum Leg Leg Aluminum Leg Utility Large Storage Unit Device Heat Sink Storage Large Storage Unit Weapon Light Assault Rifle Energy Gun Medium Laser Energy Cannon Beam Cannon Ballistic Gun Light Assault Rifle Special Weapon Mining Laser Build | -11 -10 -10 -10 ------- Run | Yrd Mat Min Sub Slots Evolved . | . . . . Power . | . . . . Propulsion . | . . . . Utility . | . . . . Weapon . | . . . . Parts Attached 19 | 6 6 2 5 Power 2 | 1 . . 1 Engine 2 | 1 . . 1 Core . | . . . . Reactor . | . . . . Propulsion 6 | 2 2 1 1 Treads . | . . . . Leg 6 | 2 2 1 1 Wheel . | . . . . Hover . | . . . . Flight . | . . . . Utility 3 | 1 1 1 . Device 1 | . . 1 . Storage 2 | 1 1 . . Processor . | . . . . Hackware . | . . . . Protection . | . . . . Artifact . | . . . . Weapon 8 | 2 3 . 3 Energy Gun 2 | 2 . . . Energy Cannon 1 | . 1 . . Ballistic Gun 4 | . 2 . 2 Ballistic Cannon . | . . . . Launcher . | . . . . Special Weapon 1 | . . . 1 Impact Weapon . | . . . . Slashing Weapon . | . . . . Piercing Weapon . | . . . . Special Melee Weapon . | . . . . Unidentified Prototypes . | . . . . Parts Lost 4 | . . 1 3 Power . | . . . . Propulsion 2 | . . 1 1 Utility . | . . . . Weapon 2 | . . . 2 Highest Loss Streak 2 | . . 1 2 To Critical Strikes . | . . . . Average Slot Usage (%) 89 | . 83 95 88 Engine 14 | . 14 14 14 Leg 27 | . 27 27 27 Device 4 | . . 10 3 Storage 14 | . 14 14 14 Energy Gun 6 | . 21 . . Ballistic Gun 20 | . 4 28 26 Naked Turns . | . . . . Heaviest Build 32 | 14 30 28 32 Greatest Support 25 | 20 20 20 25 Greatest Overweight (x) 8 | . 8 2 1 Average Overweight (x) . | . 1 1 1 Largest Inventory Capacity 15 | 8 15 15 15 Average Capacity 14 | 7 14 15 15 Most Carried 15 | 5 11 13 15 Average Carried 10 | 1 5 11 14 Final Capacity 15 | 8 15 15 15 Final Carried 15 | 1 11 12 15 Class Distribution -------------------- 71% | Mutant 28% | Scavenger-Mutant Dominant Class ---------------- Mutant | -10/Materials Mutant | -10/Mines Scavenger-Mutant | -10/Subcaves Resources | -11 -10 -10 -10 ----------- Run | Yrd Mat Min Sub Matter Collected 445 | 200 111 57 77 Remotely . | . . . . Salvage Created 323 | . 147 73 103 Parts 40 | . 16 11 13 Haulers Intercepted 1 | . 1 . . Recyclers Shooed . | . . . . Parts Field Recycled . | . . . . Retrieved Matter . | . . . . Parts Self-Destructed 7 | . . . 7 Prevented . | . . . . Kills | -11 -10 -10 -10 ------- Run | Yrd Mat Min Sub Combat Hostiles Destroyed 11 | . 3 3 5 Guns 11 | . 3 3 5 Classes Destroyed 7 | . 4 2 1 Builder 1 | . . 1 . Hauler 1 | . 1 . . Mechanic 1 | . 1 . . Watcher 1 | . 1 . . Swarmer 9 | . 3 2 4 Grunt 1 | . . 1 . Subdweller 1 | . . . 1 Best Kill Streak 5 | . 5 3 4 Combat Bots Only 4 | . 2 2 4 Max Kills in Single Turn 1 | . 1 1 1 Gunslinging . | . . . . Exploded . | . . . . Melee . | . . . . Uniques/NPCs Destroyed . | . . . . Combat | -11 -10 -10 -10 -------- Run | Yrd Mat Min Sub Hostile Shots Fired 153 | . 39 24 90 Missed 51 | . 8 8 35 Damage Taken 1001 | . 254 182 565 Core 265 | . 54 74 137 Absorbed by Shields . | . . . . Core Remaining (%) 100 | 100 . . . Volleys Fired 78 | . 23 16 39 Largest 2 | . 2 2 2 Hottest 110 | . 110 40 100 Shots Fired 127 | . 37 32 58 Gun 116 | . 29 32 55 Cannon 8 | . 8 . . Launcher . | . . . . Special 3 | . . . 3 Kinetic 88 | . 1 32 55 Thermal 33 | . 30 . 3 Explosive . | . . . . Electromagnetic 6 | . 6 . . Robot Hit Streak 18 | . 5 5 18 Robot Miss Streak 5 | . 5 4 3 Penetration Max . | . . . . Secondary Targets 1 | . . . 1 Max Gunslinging Chain 1 | . . . 1 Shots Hit Robots 79 | . 18 20 41 Core Hits 27 | . 7 9 11 Critical Kills . | . . . . Critical Parts Destroyed . | . . . . Critical Strikes . | . . . . Melee Attacks . | . . . . Impact . | . . . . Slashing . | . . . . Piercing . | . . . . Sneak Attacks . | . . . . Combat Hostiles . | . . . . Follow-up Attacks . | . . . . Damage Inflicted 637 | . 233 163 241 Guns 566 | . 163 162 241 Cannons 70 | . 70 . . Explosions . | . . . . Melee . | . . . . Ramming 1 | . . 1 . Kinetic 413 | . 10 162 241 Thermal 185 | . 185 . . Explosive . | . . . . Electromagnetic 38 | . 38 . . Impact . | . . . . Slashing . | . . . . Piercing . | . . . . Highest Corruption . | . . . . Average Corruption . | . . . . Corruption Purged . | . . . . Corruption Blocked . | . . . . Overload Shots . | . . . . Overflow Damage . | . . . . Projectiles . | . . . . Explosions . | . . . . Melee . | . . . . Knockbacks . | . . . . Impact . | . . . . Kinetic . | . . . . Secondary . | . . . . Self-Inflicted Damage . | . . . . Shots . | . . . . Rammed . | . . . . Targets Rammed 1 | . . 1 . Kicked 1 | . . 1 . Crushed . | . . . . Highest Temperature 434 | . 434 28 . Average Temperature 161 | . 195 11 . Received Heat Transfer 126 | . . 78 48 Effects 5 | . 5 . . Shutdowns 2 | . 2 . . Interference 1 | . 1 . . Short Circuit 1 | . 1 . . Damage (minor) 1 | . 1 . . Siege Activations . | . . . . Robots Corrupted . | . . . . Combat Hostiles . | . . . . Parts Fried . | . . . . Impact Corruptions . | . . . . Robots Melted . | . . . . Combat Hostiles . | . . . . Parts Melted 1 | . 1 . . Heat Transferred 481 | . 481 . . Parts Sabotaged . | . . . . Parts Stolen . | . . . . Parts Stripped . | . . . . Power Chain Reactions . | . . . . Alert | -11 -10 -10 -10 ------- Run | Yrd Mat Min Sub Peak Influence 132 | . 132 116 . Initial 51 | . . 51 . Average 46 | . 47 48 . Maximum Alert Level . | . . . . Low Security (%) 100 | 100 100 100 . Level 1 . | . . . . Level 2 . | . . . . Level 3 . | . . . . Level 4 . | . . . . Level 5 . | . . . . High Security . | . . . . Max Security . | . . . . Squads Dispatched . | . . . . Investigation . | . . . . Extermination . | . . . . Reinforcement . | . . . . Assault . | . . . . Garrison . | . . . . Intercept . | . . . . Searches Triggered . | . . . . Construction Impeded . | . . . . Haulers Reinforced . | . . . . Active Scanning Responses . | . . . . Cargo Convoy Interrupts . | . . . . Stealth | -11 -10 -10 -10 --------- Run | Yrd Mat Min Sub Distress Signals 1 | . 1 . . Communications Jammed . | . . . . Distress Signals . | . . . . Times Spotted 42 | . 11 5 26 Peak Tracking Total 6 | . 5 3 6 Tactical Retreats 3 | . . . 3 Traps | -11 -10 -10 -10 ------- Run | Yrd Mat Min Sub Traps Triggered 1 | . 1 . . Indirectly . | . . . . Trap Hack Attempts . | . . . . Triggered . | . . . . Disarmed . | . . . . Reprogrammed . | . . . . Reused . | . . . . Traps Extracted . | . . . . Installed . | . . . . Triggered . | . . . . Machines | -11 -10 -10 -10 ---------- Run | Yrd Mat Min Sub Machines Disabled 2 | . 2 . . Max in Single Turn 1 | . 1 . . Machines Repaired . | . . . . Machines Dismantled . | . . . . Machines Sabotaged . | . . . . Overloaded Fab Kills . | . . . . Hacking | -11 -10 -10 -10 --------- Run | Yrd Mat Min Sub Machines Accessed 2 | . 2 . . Terminals 1 | . 1 . . Fabricators . | . . . . Repair Stations . | . . . . Recycling Units 1 | . 1 . . Scanalyzers . | . . . . Garrison Access . | . . . . Total Hacks 3 | . 3 . . Successful 2 | . 2 . . Failed 1 | . 1 . . Catastrophic . | . . . . Database Lockouts . | . . . . Manual . | . . . . Terminals 2 | . 2 . . Fabricators . | . . . . Repair Stations . | . . . . Recycling Units 1 | . 1 . . Scanalyzers . | . . . . Garrison Access . | . . . . Terminal Hacks 1 | . 1 . . Zone Layout 1 | . 1 . . Fabricator Hacks . | . . . . Repair Station Hacks . | . . . . Recycling Unit Hacks 1 | . 1 . . Report Inventory 1 | . 1 . . Scanalyzer . | . . . . Garrison Access Hacks . | . . . . Unauthorized Hacks . | . . . . Terminals . | . . . . Fabricators . | . . . . Repair Stations . | . . . . Recycling Units . | . . . . Scanalyzers . | . . . . Garrison Access . | . . . . Data Cores Recovered . | . . . . Used . | . . . . Hacking Detections . | . . . . Full Trace Events . | . . . . Feedback Events . | . . . . Feedback Blocked . | . . . . Robot Schematics Acquired . | . . . . Robots Built . | . . . . Authchips . | . . . . Time . | . . . . Total Robot Build Rating . | . . . . Part Schematics Acquired . | . . . . Parts Built . | . . . . Authchips . | . . . . Time . | . . . . Total Part Build Rating . | . . . . Parts Repaired . | . . . . Time . | . . . . Parts Recycled . | . . . . Recycled Matter . | . . . . Retrieved Matter . | . . . . Retrieved Components . | . . . . Parts Scanalyzed . | . . . . Part Schematics Acquired . | . . . . Parts Damaged . | . . . . Bothacking | -11 -10 -10 -10 ------------ Run | Yrd Mat Min Sub Used RIF Installer . | . . . . Robots Hacked . | . . . . Non-combat . | . . . . Combat . | . . . . Robot Hacks Applied . | . . . . Relay Couplers Released . | . . . . Fabnet Peak Effective % . | . . . . Robots Rewired . | . . . . Allies Hacked . | . . . . Hacks Repelled . | . . . . Allies | -11 -10 -10 -10 -------- Run | Yrd Mat Min Sub Total Allies 1 | . . 1 . Largest Group 1 | . . 1 1 Highest-Rated Group 31 | . . 31 31 Highest-Rated Ally 31 | . . 31 31 Total Orders . | . . . . Ally Attacks 1 | . . . 1 Total Damage 21 | . . . 21 Kills . | . . . . Allies Corrupted . | . . . . Allies Melted . | . . . . Intel | -11 -10 -10 -10 ------- Run | Yrd Mat Min Sub Robot Analysis Total . | . . . . Derelict Logs Recovered 1 | . . 1 . Drone Launches . | . . . . Drone Recoveries . | . . . . Exploration | -11 -10 -10 -10 ------------- Run | Yrd Mat Min Sub Turns Passed 2189 | 55 639 638 857 Spaces Moved 1018 | 42 285 298 393 Core 14 | 11 3 . . Treads . | . . . . Legs 1004 | 31 282 298 393 Wheels . | . . . . Hover . | . . . . Flight . | . . . . Fastest Speed 50 | 50 120 190 190 Average Speed 186 | 101 188 190 190 Slowest Speed 450 | 120 450 260 190 Overloaded Moves . | . . . . Propulsion Burnouts . | . . . . Robots Hopped . | . . . . Cave-ins Triggered . | . . . . Exploration Rate (%) 34 | 3 61 50 22 Regions Visited 3 Branch Regions 2 Pre-discovered Areas 1 | . . 1 . Known Exits Taken . | . . . . Unknown Exits Taken 3 | 1 1 1 . Scrap Searched 4 | . . . 4 Spaces Dug . | . . . . Terrain Destroyed . | . . . . Melee . | . . . . Projectile . | . . . . AOE . | . . . . Terrain Rammed . | . . . . Walls Destroyed . | . . . . Machines Disabled . | . . . . Actions | -11 -10 -10 -10 --------- Run | Yrd Mat Min Sub Total 1194 | 54 349 341 450 Wait 48 | . 21 22 5 Move 1015 | 41 284 297 393 Hop . | . . . . Pick Up 29 | 7 14 3 5 Fast Attach . | . . . . Attach 12 | 6 3 2 1 Detach . | . . . . Swap 7 | . 3 . 4 Drop 4 | . 1 . 3 Fire 78 | . 23 16 39 Melee . | . . . . Ram . | . . . . Kick 1 | . . 1 . Crush . | . . . . Escape Stasis . | . . . . Rewire . | . . . . Trap . | . . . . Miscellaneous . | . . . . Route ------- -11/Scrapyard -10/Materials (discovered 3 exits: [*Mat x2] / [*Min]) -10/Mines (discovered 3 exits: [*Mat x2] / [*Sub]) -10/Subcaves (discovered 1 exit: [*Rec]) History --------- Turn | Location | Event 10 | -11/Scrapyard | Discovered new exit (range 16) 56 | -11/Scrapyard | Entered Materials 309 | -10/Materials | Build established: Mutant 323 | -10/Materials | Discovered new exit (range 5) 479 | -10/Materials | Discovered new exit (range 15) 634 | -10/Materials | Discovered new exit (range 15) 695 | -10/Materials | Entered Mines 739 | -10/Mines | Met a Derelict bent on vengeance 803 | -10/Mines | Discovered new exit (range 6) 942 | -10/Mines | Core integrity fell below 50% 949 | -10/Mines | Escorted by a lone wolf Derelict 969 | -10/Mines | Learned location of Storage (-7) 1044 | -10/Mines | Found a hidden stash of uninstalled traps 1143 | -10/Mines | Discovered new exit (range 9) 1329 | -10/Mines | Discovered new exit (range 3) 1333 | -10/Mines | Entered Subcaves 1333 | -10/Subcaves | Accompanied by 1 ally 1501 | -10/Subcaves | Disturbed a concealed Subdweller 1853 | -10/Subcaves | Build established: Scavenger-Mutant 1899 | -10/Subcaves | A swath of the cavern ceiling suddenly collapsed 2030 | -10/Subcaves | Shifting Twisted Machinery released Battle Cannon 2034 | -10/Subcaves | Shifting Twisted Machinery released Mak. Sword 2069 | -10/Subcaves | Discovered new exit (range 10) 2187 | -10/Subcaves | Core integrity fell below 20% 2190 | -10/Subcaves | Destroyed by L6-Z98(R) with Subdweller Machine Gun Last Messages --------------- Machinery. 02069_ EXIT=FOUND 02069_ S-10 Pest springs to life. 02073_ S-10 Pest destroyed. 02078_ Switching to secondary target: S-10 Pest. 02082_ Flight Unit fries itself beyond repair. 02088_ S-10 Pest destroyed. 02091_ Lgt. Ion Engine fries itself beyond repair. 02091_ S-10 Pest destroyed. 02094_ Acquired 25 matter. 02095_ Lgt. Ion Engine fries itself beyond repair. 02096_ Flight Unit fries itself beyond repair. 02105_ Lgt. Ion Engine fries itself beyond repair. 02176_ Aluminum Leg destroyed. 02180_ Lgt. Assault Rifle destroyed. Map ----- +----------------------------------------------------+ | ???????# "" ##### #??? ##??????????????????? | | ???????# " ### ##?? #??????????????????? | | ???????# " ]" ### #??????????????????? | | ???????# "" """ #??????????????????? | | ???????# " " """" #???????????????????? | | ???????#["""" /"" #???????????????????? | | ???????# """" #### % ##???????????????????? | | ???????#" " "" ##? % "#?????????????????? | | ??????# " " ## #?????????????????? | | ??????# ## "" ## #?????????????????? | | ??????###?#" " " ##" "#?????????????????? | | ??????????#"] " ##" " " "#?????????????????? | | ??????????#"" " ##"""" """"#?????????????????? | | ??????????# ######<#####?????????????????? | | ??????????# #???##?????????????????????? | | ??????????# ######?????????????????????? | | ????????# ##### #?????????????????????? | | ???????# ??### #?????????????????????? | | ???????# ??# #?????????????????????? | | ???????# ??# ## ##????????????????????? | | ???????? ? ?# ### #????????????????????? | | ?????????????## ??# #????????????????????? | | ??????????????## ??## ###????????????????????? | | ???????????????# ???## ####???????????????????? | | ???????????????# #????## #???????????????????? | | ???????????????###??????#@ #???????????????????? | | ????????????????????????## #???????????????????? | | ?????????????????????????##RR#???????????????????? | | ??????????????????????????# #???????????????????? | | ?????????????????????????? #???????????????????? | | ?????????????????????????? ???????????????????? | | ?????????????????????????? ??????????????????? | | ?????????????????????????? ""?????????????????? | | ????????????????????????? ## ""????????????????? | | ?????????????????????????## ?####???????????????? | | ???????????????????????????"#????????????????????? | | ???????????????????????????"?????????????????????? | | ???????????????????????????"?????????????????????? | | ?????????????????????????????????????????????????? | | ?????????????????????????????????????????????????? | | ?????????????????????????????????????????????????? | | ?????????????????????????????????????????????????? | | ?????????????????????????????????????????????????? | | ?????????????????????????????????????????????????? | | ?????????????????????????????????????????????????? | | ?????????????????????????????????????????????????? | | ?????????????????????????????????????????????????? | | ?????????????????????????????????????????????????? | | ?????????????????????????????????????????????????? | | ?????????????????????????????????????????????????? | +----------------------------------------------------+ Best States ------------- Heat Dissipation 35 Energy Generation 18 Energy Capacity 250 Matter Stores 300 Matter Capacity 300 Sight Range 16 Terrain Scan Density 10 Evasion (%) 50 Item Schematics ----------------- None Robot Schematics ------------------ None Fabricated ------------ Nothing Alien Tech Used ----------------- None Achievements -------------- None Challenges ------------ None Game ------ Seed PhysicsDispersionPick Manual? 0 Play Time 00:16:27 Cumulative 8.8 hours Start 2024.04.07 @ 08:14:55 End 2024.04.07 @ 08:30:38 Sessions 1 Manual Loads 0 Difficulty Rogue Special Mode None Game No. 17 Rogue 17 Adventurer 0 Explorer 0 Win Type - Total 0 Types 0/0/0/0/0/0/0/0/0 Lore% 14 Gallery% 11 Achievement% 13 Wizard Run 0 Options --------- Layout 1 ASCII 0 Keyboard 0 Movement Numpad Keybinds 0 Fullscreen 1 Font 24/Smallcaps Map View 50x35 Zoom Use 0% Tactical HUD 1 Map Filters NONE Filters NONE Steam 1 RUN: 2871fdc5-cbb6-42ba-bb1d-470b577def50